[Event "2026 Biel Blitz Open"]
[Site "Biel, CH"]
[Date "2026.07.19"]
[Round "5"]
[White "Vihaan Dumir"]
[Black "Mikavica, Mirko"]
[Result "1-0"]
[Board "28"]
[TimeControl "180+2"]
[WhiteFideId "25901010"]
[BlackFideId "908657"]
[WhiteElo "1965"]
[BlackElo "2015"]
[WhiteTitle "CM"]
[WhiteClock "0:02:05"]
[BlackClock "0:00:06"]
[Variant "Standard"]
[EndDate "2026.07.19"]
[EndTime "13:06:24"]

1. e4 {[%clk 0:03:03]}  c5 {[%clk 0:03:02]} 2. Nf3 {[%clk 0:03:03]}  d6 {[%clk 0:03:00]} 3. d4 {[%clk 0:03:04]}  cxd4 {[%clk 0:03:01]}
4. Qxd4 {[%clk 0:03:05]}  Nc6 {[%clk 0:03:02]} 5. Qe3 {[%clk 0:03:05]}  Nf6 {[%clk 0:02:58]} 6. h3 {[%clk 0:03:06]}  g6 {[%clk 0:02:48]}
7. c4 {[%clk 0:03:07]}  Bg7 {[%clk 0:02:49]} 8. Be2 {[%clk 0:03:08]}  O-O {[%clk 0:02:43]} 9. O-O {[%clk 0:03:08]}  b6 {[%clk 0:02:41]}
10. Nc3 {[%clk 0:03:09]}  Bb7 {[%clk 0:02:42]} 11. Rb1 {[%clk 0:03:06]}  Nd7 {[%clk 0:02:24]} 12. b3 {[%clk 0:03:07]}  Nc5 {[%clk 0:02:19]}
13. Bb2 {[%clk 0:03:08]}  a6 {[%clk 0:02:15]} 14. Rfd1 {[%clk 0:03:06]}  e6 {[%clk 0:02:08]} 15. Ba1 {[%clk 0:03:04]}  Qe7 {[%clk 0:02:07]}
16. b4 {[%clk 0:02:57]}  Nd7 {[%clk 0:01:56]} 17. a3 {[%clk 0:02:57]}  Rfd8 {[%clk 0:01:41]} 18. Na4 {[%clk 0:02:53]}  Bxa1 {[%clk 0:01:36]}
19. Rxa1 {[%clk 0:02:54]}  Nce5 {[%clk 0:01:11]} 20. Nxe5 {[%clk 0:02:44]}  dxe5 {[%clk 0:01:10]} 21. f3 {[%clk 0:02:39]}  a5 {[%clk 0:01:01]}
22. Nxb6 {[%clk 0:02:37]}  Nxb6 {[%clk 0:00:56]} 23. Qxb6 {[%clk 0:02:37]}  Rxd1+ {[%clk 0:00:48]} 24. Rxd1 {[%clk 0:02:37]}  axb4 {[%clk 0:00:48]}
25. axb4 {[%clk 0:02:33]}  Ra2 {[%clk 0:00:46]} 26. Bf1 {[%clk 0:02:34]}  Kg7 {[%clk 0:00:33]} 27. c5 {[%clk 0:02:33]}  Rc2 {[%clk 0:00:29]}
28. Qd6 {[%clk 0:02:27]}  Qh4 {[%clk 0:00:29]} 29. Qxe5+ {[%clk 0:02:26]}  Kh6 {[%clk 0:00:22]} 30. Qd4 {[%clk 0:02:13]}  Bc6 {[%clk 0:00:13]}
31. Qe3+ {[%clk 0:02:13]}  Kg7 {[%clk 0:00:13]} 32. b5 {[%clk 0:02:13]}  Be8 {[%clk 0:00:08]} 33. c6 {[%clk 0:02:10]}  Qf6 {[%clk 0:00:10]}
34. Qd4 {[%clk 0:02:09]}  Rc5 {[%clk 0:00:06]} 35. Qxc5 {[%clk 0:02:05]} 1-0

[Event "2026 Biel Blitz Open"]
[Site "Biel, CH"]
[Date "2026.07.19"]
[Round "5"]
[White "Schweizer, Samuel"]
[Black "Jelicic, Hugo"]
[Result "1-0"]
[Board "29"]
[TimeControl "180+2"]
[WhiteFideId "1325353"]
[BlackFideId "1349040"]
[WhiteElo "2006"]
[BlackElo "1804"]
[WhiteClock "0:01:41"]
[BlackClock "0:00:10"]
[Variant "Standard"]
[EndDate "2026.07.19"]
[EndTime "13:14:06"]

1. e4 {[%clk 0:03:02]}  c6 {[%clk 0:03:04]} 2. Ne2 {[%clk 0:03:02]}  e5 {[%clk 0:02:52]} 3. d4 {[%clk 0:03:02]}  exd4 {[%clk 0:02:52]}
4. Qxd4 {[%clk 0:03:01]}  d6 {[%clk 0:02:31]} 5. Nbc3 {[%clk 0:02:57]}  Nf6 {[%clk 0:02:28]} 6. Bf4 {[%clk 0:02:57]}  Nh5 {[%clk 0:02:03]}
7. Be3 {[%clk 0:02:54]}  Nd7 {[%clk 0:01:27]} 8. O-O-O {[%clk 0:02:48]}  Rg8 {[%clk 0:01:08]} 9. g4 {[%clk 0:02:47]}  Nhf6 {[%clk 0:01:08]}
10. f3 {[%clk 0:02:46]}  Qe7 {[%clk 0:01:03]} 11. Ng3 {[%clk 0:02:43]}  Ne5 {[%clk 0:01:01]} 12. Be2 {[%clk 0:02:42]}  h6 {[%clk 0:00:51]}
13. h4 {[%clk 0:02:42]}  Be6 {[%clk 0:00:47]} 14. g5 {[%clk 0:02:38]}  hxg5 {[%clk 0:00:42]} 15. hxg5 {[%clk 0:02:38]}  Nfd7 {[%clk 0:00:41]}
16. Nf5 {[%clk 0:02:22]}  Bxf5 {[%clk 0:00:38]} 17. exf5 {[%clk 0:02:22]}  O-O-O {[%clk 0:00:34]} 18. Qxa7 {[%clk 0:02:16]}  Nb8 {[%clk 0:00:33]}
19. Rhe1 {[%clk 0:02:10]}  f6 {[%clk 0:00:20]} 20. f4 {[%clk 0:02:04]}  Ned7 {[%clk 0:00:18]} 21. Bf3 {[%clk 0:01:53]}  Qf7 {[%clk 0:00:08]}
22. g6 {[%clk 0:01:48]}  Qc4 {[%clk 0:00:10]} 23. Be2 {[%clk 0:01:43]}  Qb4 {[%clk 0:00:10]} 24. a3 {[%clk 0:01:41]}  Rh8 {[%clk 0:00:10]} 1-0

[Event "2026 Biel Blitz Open"]
[Site "Biel, CH"]
[Date "2026.07.19"]
[Round "5"]
[White "Langner, Robin"]
[Black "Aryan Goyal"]
[Result "1-0"]
[Board "30"]
[TimeControl "180+2"]
[WhiteFideId "34606190"]
[BlackFideId "366108825"]
[WhiteElo "2059"]
[BlackElo "1748"]
[WhiteClock "0:00:32"]
[BlackClock "0:00:04"]
[Variant "Standard"]
[EndDate "2026.07.19"]
[EndTime "13:07:32"]

1. d4 {[%clk 0:03:03]}  Nf6 {[%clk 0:03:04]} 2. c4 {[%clk 0:03:04]}  e6 {[%clk 0:03:05]} 3. g3 {[%clk 0:03:04]}  d5 {[%clk 0:03:03]}
4. Bg2 {[%clk 0:03:05]}  Be7 {[%clk 0:03:05]} 5. Nf3 {[%clk 0:03:06]}  O-O {[%clk 0:03:05]} 6. O-O {[%clk 0:03:06]}  dxc4 {[%clk 0:03:06]}
7. Qc2 {[%clk 0:03:08]}  a6 {[%clk 0:03:07]} 8. a4 {[%clk 0:03:07]}  Bd7 {[%clk 0:03:08]} 9. Rd1 {[%clk 0:03:08]}  Bc6 {[%clk 0:03:08]}
10. Bg5 {[%clk 0:03:08]}  Ne4 {[%clk 0:02:52]} 11. Bxe7 {[%clk 0:03:07]}  Qxe7 {[%clk 0:02:52]} 12. Ne5 {[%clk 0:02:59]}  Nd6 {[%clk 0:02:49]}
13. Nxc6 {[%clk 0:02:44]}  Nxc6 {[%clk 0:02:50]} 14. Bxc6 {[%clk 0:02:39]}  bxc6 {[%clk 0:02:51]} 15. Na3 {[%clk 0:02:40]}  Rab8 {[%clk 0:02:52]}
16. Rd2 {[%clk 0:02:26]}  Rb4 {[%clk 0:02:52]} 17. e4 {[%clk 0:02:17]}  e5 {[%clk 0:02:51]} 18. f3 {[%clk 0:01:53]}  Rfb8 {[%clk 0:02:41]}
19. Rb1 {[%clk 0:01:11]}  exd4 {[%clk 0:02:41]} 20. Rxd4 {[%clk 0:01:12]}  Qe5 {[%clk 0:02:37]} 21. Rd2 {[%clk 0:00:57]}  Qc5+ {[%clk 0:02:09]}
22. Kg2 {[%clk 0:00:54]}  Rb3 {[%clk 0:02:02]} 23. Re2 {[%clk 0:00:45]}  c3 {[%clk 0:01:54]} 24. e5 {[%clk 0:00:36]}  Rxb2 {[%clk 0:01:26]}
25. exd6 {[%clk 0:00:38]}  Qxd6 {[%clk 0:01:07]} 26. Nc4 {[%clk 0:00:35]}  Qg6 {[%clk 0:00:05]} 27. Nxb2 {[%clk 0:00:32]}  Qxc2 {[%clk 0:00:03]}
28. Rxc2 {[%clk 0:00:32]}  cxb2 {[%clk 0:00:04]} 29. Rcxb2 {[%clk 0:00:32]} 1-0

[Event "2026 Biel Blitz Open"]
[Site "Biel, CH"]
[Date "2026.07.19"]
[Round "5"]
[White "Heitmann, Erik"]
[Black "Gireada, Daniel"]
[Result "0-1"]
[Board "31"]
[TimeControl "180+2"]
[WhiteFideId "34608940"]
[BlackFideId "1206451"]
[WhiteElo "1885"]
[BlackElo "2148"]
[WhiteClock "0:00:04"]
[BlackClock "0:00:11"]
[Variant "Standard"]
[EndDate "2026.07.19"]
[EndTime "13:09:43"]

1. d4 {[%clk 0:03:04]}  Nf6 {[%clk 0:03:02]} 2. c4 {[%clk 0:03:05]}  g6 {[%clk 0:03:01]} 3. Nc3 {[%clk 0:03:05]}  d5 {[%clk 0:03:01]}
4. cxd5 {[%clk 0:03:06]}  Nxd5 {[%clk 0:02:57]} 5. e4 {[%clk 0:03:06]}  Nxc3 {[%clk 0:03:01]} 6. bxc3 {[%clk 0:03:08]}  Bg7 {[%clk 0:03:00]}
7. Bc4 {[%clk 0:03:08]}  c5 {[%clk 0:02:59]} 8. Ne2 {[%clk 0:03:08]}  O-O {[%clk 0:02:58]} 9. Be3 {[%clk 0:03:09]}  Nc6 {[%clk 0:02:54]}
10. h4 {[%clk 0:03:01]}  h5 {[%clk 0:02:34]} 11. Qd2 {[%clk 0:02:59]}  Bg4 {[%clk 0:02:20]} 12. f3 {[%clk 0:02:58]}  Bd7 {[%clk 0:02:21]}
13. Bh6 {[%clk 0:02:46]}  cxd4 {[%clk 0:02:14]} 14. Bxg7 {[%clk 0:02:35]}  Kxg7 {[%clk 0:02:13]} 15. cxd4 {[%clk 0:02:35]}  Qa5 {[%clk 0:02:10]}
16. Qxa5 {[%clk 0:02:26]}  Nxa5 {[%clk 0:02:11]} 17. Bd3 {[%clk 0:02:27]}  Rac8 {[%clk 0:02:04]} 18. Kd2 {[%clk 0:02:08]}  Nc4+ {[%clk 0:02:00]}
19. Bxc4 {[%clk 0:02:05]}  Rxc4 {[%clk 0:01:59]} 20. Rhc1 {[%clk 0:01:58]}  Rfc8 {[%clk 0:01:55]} 21. Rxc4 {[%clk 0:01:57]}  Rxc4 {[%clk 0:01:56]}
22. Rc1 {[%clk 0:01:46]}  Rxc1 {[%clk 0:01:45]} 23. Nxc1 {[%clk 0:01:46]}  Kf6 {[%clk 0:01:45]} 24. Nd3 {[%clk 0:01:42]}  b6 {[%clk 0:01:25]}
25. Ne5 {[%clk 0:01:32]}  Be8 {[%clk 0:01:26]} 26. Kc3 {[%clk 0:01:13]}  Ke6 {[%clk 0:01:26]} 27. Kb4 {[%clk 0:01:11]}  f6 {[%clk 0:01:21]}
28. Nd3 {[%clk 0:01:06]}  Kd6 {[%clk 0:01:11]} 29. g3 {[%clk 0:00:49]}  Bd7 {[%clk 0:01:11]} 30. Nf4 {[%clk 0:00:48]}  Be8 {[%clk 0:01:09]}
31. Nd3 {[%clk 0:00:49]}  e5 {[%clk 0:01:08]} 32. dxe5+ {[%clk 0:00:35]}  fxe5 {[%clk 0:01:08]} 33. f4 {[%clk 0:00:30]}  exf4 {[%clk 0:01:05]}
34. gxf4 {[%clk 0:00:26]}  Bc6 {[%clk 0:00:59]} 35. e5+ {[%clk 0:00:17]}  Ke6 {[%clk 0:01:00]} 36. Kc4 {[%clk 0:00:10]}  Kf5 {[%clk 0:00:53]}
37. Kd4 {[%clk 0:00:10]}  Bd7 {[%clk 0:00:47]} 38. Kd5 {[%clk 0:00:08]}  Be6+ {[%clk 0:00:35]} 39. Kd6 {[%clk 0:00:06]}  Bxa2 {[%clk 0:00:33]}
40. Nb4 {[%clk 0:00:07]}  Bg8 {[%clk 0:00:25]} 41. Nc6 {[%clk 0:00:08]}  Kxf4 {[%clk 0:00:26]} 42. Nxa7 {[%clk 0:00:06]}  Kg4 {[%clk 0:00:25]}
43. Nc8 {[%clk 0:00:06]}  Kxh4 {[%clk 0:00:21]} 44. Nxb6 {[%clk 0:00:04]}  g5 {[%clk 0:00:22]} 45. Nd5 {[%clk 0:00:03]}  g4 {[%clk 0:00:20]}
46. Nf4 {[%clk 0:00:04]}  g3 {[%clk 0:00:18]} 47. Ke7 {[%clk 0:00:04]}  Kg4 {[%clk 0:00:18]} 48. Nd5 {[%clk 0:00:04]}  Bxd5 {[%clk 0:00:11]} 0-1

[Event "2026 Biel Blitz Open"]
[Site "Biel, CH"]
[Date "2026.07.19"]
[Round "5"]
[White "Hirt, Markus"]
[Black "Stefan, Iulia-Cristiana"]
[Result "0-1"]
[Board "32"]
[TimeControl "180+2"]
[WhiteFideId "1302582"]
[BlackFideId "1273876"]
[WhiteElo "1880"]
[BlackElo "2050"]
[BlackTitle "WFM"]
[WhiteClock "0:00:01"]
[BlackClock "0:03:02"]
[Variant "Standard"]
[EndDate "2026.07.19"]
[EndTime "13:14:56"]

1. e4 {[%clk 0:03:02]}  e5 {[%clk 0:00:00]} 2. Bc4 {[%clk 0:03:01]}  Nf6 {[%clk 0:00:00]} 3. d3 {[%clk 0:03:00]}  c6 {[%clk 0:00:00]}
4. Nf3 {[%clk 0:02:58]}  Be7 {[%clk 0:00:00]} 5. O-O {[%clk 0:02:55]}  Qc7 {[%clk 0:00:00]} 6. Re1 {[%clk 0:02:50]}  O-O {[%clk 0:00:00]}
7. Bb3 {[%clk 0:02:40]}  d6 {[%clk 0:00:00]} 8. Nbd2 {[%clk 0:02:34]}  Be6 {[%clk 0:00:00]} 9. c3 {[%clk 0:02:18]}  h6 {[%clk 0:00:00]}
10. Nf1 {[%clk 0:02:15]}  Nbd7 {[%clk 0:00:00]} 11. Ng3 {[%clk 0:02:13]}  Rfe8 {[%clk 0:00:00]} 12. Nh4 {[%clk 0:01:57]}  Bf8 {[%clk 0:00:00]}
13. Nhf5 {[%clk 0:01:54]}  d5 {[%clk 0:00:00]} 14. Qe2 {[%clk 0:01:43]}  Rad8 {[%clk 0:00:00]} 15. Qf3 {[%clk 0:01:38]}  Nc5 {[%clk 0:00:00]}
16. Bc2 {[%clk 0:01:28]}  dxe4 {[%clk 0:00:00]} 17. dxe4 {[%clk 0:01:25]}  a5 {[%clk 0:00:00]} 18. Nxh6+ {[%clk 0:01:16]}  Kh8 {[%clk 0:00:00]}
19. Nhf5 {[%clk 0:01:03]}  g6 {[%clk 0:00:00]} 20. Ne3 {[%clk 0:00:36]}  Bg7 {[%clk 0:00:00]} 21. h3 {[%clk 0:00:26]}  Nd3 {[%clk 0:00:00]}
22. Rd1 {[%clk 0:00:19]}  Nxc1 {[%clk 0:00:00]} 23. Raxc1 {[%clk 0:00:11]}  Bxa2 {[%clk 0:00:00]} 24. Ng4 {[%clk 0:00:01]}  Nxg4 {[%clk 0:00:00]}
25. Qxg4 {[%clk 0:00:01]}  Be6 {[%clk 0:00:00]} 26. Qf3 {[%clk 0:00:00]}  Kg8 {[%clk 0:00:00]} 27. h4 {[%clk 0:00:00]}  Qc8 {[%clk 0:00:00]}
28. Qe3 {[%clk 0:00:00]}  Bg4 {[%clk 0:00:00]} 29. f3 {[%clk 0:00:00]}  Be6 {[%clk 0:00:00]} 30. h5 {[%clk 0:00:00]}  Rxd1+ {[%clk 0:00:00]}
31. Rxd1 {[%clk 0:00:00]}  Rd8 {[%clk 0:00:00]} 32. Rxd8+ {[%clk 0:00:00]}  Qxd8 {[%clk 0:00:00]} 33. hxg6 {[%clk 0:00:00]}  fxg6 {[%clk 0:00:00]}
34. Qd3 {[%clk 0:00:00]}  Qxd3 {[%clk 0:00:00]} 35. Bxd3 {[%clk 0:00:00]}  Bh6 {[%clk 0:00:00]} 36. Kf2 {[%clk 0:00:00]}  Bc1 {[%clk 0:00:00]}
37. b4 {[%clk 0:00:00]}  a4 {[%clk 0:00:00]} 38. Ne2 {[%clk 0:00:00]}  Bb2 {[%clk 0:00:00]} 39. c4 {[%clk 0:00:00]}  a3 {[%clk 0:00:00]}
40. c5 {[%clk 0:00:00]}  a2 {[%clk 0:00:00]} 41. Kg3 {[%clk 0:00:00]}  a1=Q {[%clk 0:00:00]} 0-1

[Event "2026 Biel Blitz Open"]
[Site "Biel, CH"]
[Date "2026.07.19"]
[Round "5"]
[White "Bajraktari, Perparim"]
[Black "Valsecchi, Luca"]
[Result "1-0"]
[Board "33"]
[TimeControl "180+2"]
[WhiteFideId "1307711"]
[BlackFideId "1368524"]
[WhiteElo "2045"]
[BlackElo "1869"]
[WhiteClock "0:02:06"]
[BlackClock "0:00:12"]
[Variant "Standard"]
[EndDate "2026.07.19"]
[EndTime "13:07:06"]

1. c4 {[%clk 0:03:03]}  e6 {[%clk 0:03:04]} 2. b3 {[%clk 0:03:04]}  d5 {[%clk 0:03:04]} 3. Bb2 {[%clk 0:03:05]}  Nf6 {[%clk 0:03:05]}
4. g3 {[%clk 0:03:06]}  b6 {[%clk 0:02:55]} 5. Bg2 {[%clk 0:03:06]}  Bb7 {[%clk 0:02:56]} 6. Nf3 {[%clk 0:03:07]}  Bd6 {[%clk 0:02:50]}
7. O-O {[%clk 0:03:07]}  O-O {[%clk 0:02:50]} 8. d3 {[%clk 0:03:08]}  Nbd7 {[%clk 0:02:48]} 9. Re1 {[%clk 0:03:09]}  c5 {[%clk 0:02:44]}
10. Nc3 {[%clk 0:03:09]}  a6 {[%clk 0:02:42]} 11. e4 {[%clk 0:03:04]}  d4 {[%clk 0:02:36]} 12. Ne2 {[%clk 0:03:03]}  e5 {[%clk 0:02:37]}
13. Nh4 {[%clk 0:02:54]}  Re8 {[%clk 0:02:33]} 14. Bc1 {[%clk 0:02:53]}  Bf8 {[%clk 0:02:07]} 15. Rf1 {[%clk 0:02:54]}  Rc8 {[%clk 0:01:59]}
16. f4 {[%clk 0:02:55]}  b5 {[%clk 0:01:58]} 17. h3 {[%clk 0:02:56]}  Nh5 {[%clk 0:01:51]} 18. Kh2 {[%clk 0:02:45]}  Bd6 {[%clk 0:01:29]}
19. f5 {[%clk 0:02:42]}  Nhf6 {[%clk 0:01:09]} 20. Qe1 {[%clk 0:02:37]}  Bf8 {[%clk 0:01:02]} 21. g4 {[%clk 0:02:37]}  Be7 {[%clk 0:00:58]}
22. Qg3 {[%clk 0:02:29]}  Nxe4 {[%clk 0:00:54]} 23. Bxe4 {[%clk 0:02:17]}  Bxe4 {[%clk 0:00:55]} 24. dxe4 {[%clk 0:02:19]}  Bxh4 {[%clk 0:00:55]}
25. Qf3 {[%clk 0:02:18]}  Bg5 {[%clk 0:00:51]} 26. Ng3 {[%clk 0:02:13]}  Bxc1 {[%clk 0:00:48]} 27. Raxc1 {[%clk 0:02:15]}  f6 {[%clk 0:00:46]}
28. Rg1 {[%clk 0:02:12]}  h6 {[%clk 0:00:39]} 29. Nh5 {[%clk 0:02:12]}  Nb6 {[%clk 0:00:33]} 30. h4 {[%clk 0:02:09]}  bxc4 {[%clk 0:00:33]}
31. bxc4 {[%clk 0:02:10]}  Qd7 {[%clk 0:00:25]} 32. g5 {[%clk 0:02:08]}  hxg5 {[%clk 0:00:20]} 33. hxg5 {[%clk 0:02:09]}  fxg5 {[%clk 0:00:12]}
34. Rxg5 {[%clk 0:02:10]}  Re7 {[%clk 0:00:12]} 35. Nf6+ {[%clk 0:02:06]} 1-0

[Event "2026 Biel Blitz Open"]
[Site "Biel, CH"]
[Date "2026.07.19"]
[Round "5"]
[White "Draude, Theo"]
[Black "Nguyen Thi Mai Hung"]
[Result "0-1"]
[Board "34"]
[TimeControl "180+2"]
[WhiteFideId "34623809"]
[BlackFideId "12401676"]
[WhiteElo "1861"]
[BlackElo "2039"]
[BlackTitle "WGM"]
[WhiteClock "0:00:05"]
[BlackClock "0:01:10"]
[Variant "Standard"]
[EndDate "2026.07.19"]
[EndTime "13:07:03"]

1. e4 {[%clk 0:03:03]}  e6 {[%clk 0:03:03]} 2. d4 {[%clk 0:03:05]}  d5 {[%clk 0:03:04]} 3. exd5 {[%clk 0:03:06]}  exd5 {[%clk 0:03:05]}
4. Bd3 {[%clk 0:03:01]}  Bd6 {[%clk 0:03:04]} 5. Nc3 {[%clk 0:02:57]}  Ne7 {[%clk 0:03:00]} 6. Bg5 {[%clk 0:02:50]}  c6 {[%clk 0:02:58]}
7. Qd2 {[%clk 0:02:51]}  f6 {[%clk 0:02:58]} 8. Bf4 {[%clk 0:02:49]}  Bf5 {[%clk 0:02:56]} 9. Bxd6 {[%clk 0:02:30]}  Qxd6 {[%clk 0:02:57]}
10. O-O-O {[%clk 0:02:28]}  Nd7 {[%clk 0:02:58]} 11. Nge2 {[%clk 0:02:24]}  O-O-O {[%clk 0:02:54]} 12. Rhe1 {[%clk 0:02:15]}  Bxd3 {[%clk 0:02:47]}
13. Qxd3 {[%clk 0:02:12]}  Qxh2 {[%clk 0:02:42]} 14. Ng3 {[%clk 0:01:54]}  Rde8 {[%clk 0:02:26]} 15. Qf3 {[%clk 0:00:34]}  Qh6+ {[%clk 0:02:26]}
16. Kb1 {[%clk 0:00:36]}  Qg5 {[%clk 0:02:27]} 17. Rh1 {[%clk 0:00:33]}  g6 {[%clk 0:02:17]} 18. Rde1 {[%clk 0:00:33]}  f5 {[%clk 0:01:56]}
19. Qd3 {[%clk 0:00:18]}  Nf6 {[%clk 0:01:43]} 20. Re2 {[%clk 0:00:07]}  Ne4 {[%clk 0:01:43]} 21. Ngxe4 {[%clk 0:00:06]}  fxe4 {[%clk 0:01:43]}
22. Qh3+ {[%clk 0:00:07]}  Qf5 {[%clk 0:01:31]} 23. g4 {[%clk 0:00:06]}  Qd7 {[%clk 0:01:32]} 24. Re3 {[%clk 0:00:07]}  h5 {[%clk 0:01:20]}
25. Qg3 {[%clk 0:00:03]}  Qxg4 {[%clk 0:01:13]} 26. Qe5 {[%clk 0:00:04]}  Nf5 {[%clk 0:01:10]} 27. Qf6 {[%clk 0:00:05]}  Nxe3 {[%clk 0:01:10]} 0-1

[Event "2026 Biel Blitz Open"]
[Site "Biel, CH"]
[Date "2026.07.19"]
[Round "5"]
[White "El-Mais, Ibaa"]
[Black "Freuler, Roman"]
[Result "1-0"]
[Board "35"]
[TimeControl "180+2"]
[WhiteFideId "1312715"]
[BlackFideId "1304283"]
[WhiteElo "2012"]
[BlackElo "1852"]
[WhiteClock "0:00:06"]
[BlackClock "0:00:09"]
[Variant "Standard"]
[EndDate "2026.07.19"]
[EndTime "13:10:25"]

1. d4 {[%clk 0:03:02]}  Nf6 {[%clk 0:03:04]} 2. Nf3 {[%clk 0:03:03]}  g6 {[%clk 0:03:02]} 3. c4 {[%clk 0:03:04]}  c5 {[%clk 0:03:07]}
4. d5 {[%clk 0:03:01]}  b5 {[%clk 0:03:08]} 5. cxb5 {[%clk 0:03:00]}  a6 {[%clk 0:03:10]} 6. b6 {[%clk 0:03:01]}  Bg7 {[%clk 0:03:10]}
7. Nc3 {[%clk 0:03:02]}  d6 {[%clk 0:03:08]} 8. e4 {[%clk 0:03:03]}  Nbd7 {[%clk 0:03:04]} 9. Be2 {[%clk 0:03:00]}  O-O {[%clk 0:03:04]}
10. O-O {[%clk 0:03:00]}  Qxb6 {[%clk 0:02:54]} 11. a4 {[%clk 0:02:58]}  Bb7 {[%clk 0:02:34]} 12. Nd2 {[%clk 0:02:53]}  Rfb8 {[%clk 0:02:31]}
13. a5 {[%clk 0:02:38]}  Qc7 {[%clk 0:02:23]} 14. Nc4 {[%clk 0:02:37]}  Ra7 {[%clk 0:01:38]} 15. Bf4 {[%clk 0:02:16]}  Bc8 {[%clk 0:01:27]}
16. Bg3 {[%clk 0:01:56]}  h5 {[%clk 0:01:25]} 17. f4 {[%clk 0:01:35]}  Ne8 {[%clk 0:01:15]} 18. Bd3 {[%clk 0:01:00]}  Ndf6 {[%clk 0:01:15]}
19. h3 {[%clk 0:00:46]}  Bd7 {[%clk 0:01:13]} 20. e5 {[%clk 0:00:46]}  Nh7 {[%clk 0:01:10]} 21. e6 {[%clk 0:00:46]}  Bb5 {[%clk 0:00:36]}
22. exf7+ {[%clk 0:00:45]}  Kxf7 {[%clk 0:00:34]} 23. f5 {[%clk 0:00:44]}  Nhf6 {[%clk 0:00:35]} 24. fxg6+ {[%clk 0:00:44]}  Kg8 {[%clk 0:00:36]}
25. Qe2 {[%clk 0:00:33]}  Qb7 {[%clk 0:00:27]} 26. Qe6+ {[%clk 0:00:26]}  Kh8 {[%clk 0:00:27]} 27. Ne4 {[%clk 0:00:19]}  Qc8 {[%clk 0:00:23]}
28. Ng5 {[%clk 0:00:16]}  Qxe6 {[%clk 0:00:22]} 29. dxe6 {[%clk 0:00:13]}  Bxc4 {[%clk 0:00:20]} 30. Bxc4 {[%clk 0:00:14]}  Rxb2 {[%clk 0:00:21]}
31. Rab1 {[%clk 0:00:08]}  Rab7 {[%clk 0:00:22]} 32. Rxb2 {[%clk 0:00:09]}  Rxb2 {[%clk 0:00:23]} 33. h4 {[%clk 0:00:06]}  Rb4 {[%clk 0:00:22]}
34. Bxa6 {[%clk 0:00:06]}  Ra4 {[%clk 0:00:23]} 35. Bb5 {[%clk 0:00:07]}  Rxa5 {[%clk 0:00:24]} 36. Bd7 {[%clk 0:00:07]}  Ra7 {[%clk 0:00:25]}
37. Bxe8 {[%clk 0:00:06]}  Nxe8 {[%clk 0:00:26]} 38. Rf7 {[%clk 0:00:07]}  Nf6 {[%clk 0:00:25]} 39. Kh2 {[%clk 0:00:07]}  Kg8 {[%clk 0:00:25]}
40. Bxd6 {[%clk 0:00:07]}  Ng4+ {[%clk 0:00:19]} 41. Kg3 {[%clk 0:00:07]}  Ra3+ {[%clk 0:00:20]} 42. Nf3 {[%clk 0:00:07]}  exd6 {[%clk 0:00:22]}
43. e7 {[%clk 0:00:03]}  Re3 {[%clk 0:00:22]} 44. Kf4 {[%clk 0:00:08]}  Be5+ {[%clk 0:00:19]} 45. Kg5 {[%clk 0:00:08]}  Bg7 {[%clk 0:00:18]}
46. Kxh5 {[%clk 0:00:08]}  Nf6+ {[%clk 0:00:17]} 47. Kg5 {[%clk 0:00:09]}  Nd7 {[%clk 0:00:12]} 48. h5 {[%clk 0:00:07]}  Bf6+ {[%clk 0:00:12]}
49. Kf5 {[%clk 0:00:06]}  Bxe7 {[%clk 0:00:13]} 50. h6 {[%clk 0:00:07]}  Bf8 {[%clk 0:00:11]} 51. h7+ {[%clk 0:00:07]}  Kh8 {[%clk 0:00:08]}
52. Rxd7 {[%clk 0:00:06]}  Re7 {[%clk 0:00:06]} 53. Rxe7 {[%clk 0:00:05]}  Bxe7 {[%clk 0:00:08]} 54. Ke6 {[%clk 0:00:07]}  Bf8 {[%clk 0:00:08]}
55. Kf7 {[%clk 0:00:08]}  c4 {[%clk 0:00:08]} 56. Kxf8 {[%clk 0:00:08]}  c3 {[%clk 0:00:09]} 57. g7 {[%clk 0:00:00]} 1-0

[Event "2026 Biel Blitz Open"]
[Site "Biel, CH"]
[Date "2026.07.19"]
[Round "5"]
[White "Berezovskii, Arina"]
[Black "Python, Noe"]
[Result "0-1"]
[Board "36"]
[TimeControl "180+2"]
[WhiteFideId "34449850"]
[BlackFideId "1337637"]
[WhiteElo "1851"]
[BlackElo "2010"]
[WhiteTitle "WCM"]
[WhiteClock "0:00:03"]
[BlackClock "0:00:35"]
[Variant "Standard"]
[EndDate "2026.07.19"]
[EndTime "13:14:15"]

1. e4 {[%clk 0:03:04]}  d6 {[%clk 0:03:04]} 2. d4 {[%clk 0:03:05]}  Nf6 {[%clk 0:03:05]} 3. Nc3 {[%clk 0:03:06]}  e5 {[%clk 0:03:06]}
4. dxe5 {[%clk 0:03:07]}  dxe5 {[%clk 0:03:07]} 5. Qxd8+ {[%clk 0:03:07]}  Kxd8 {[%clk 0:03:08]} 6. Nf3 {[%clk 0:03:08]}  Bd6 {[%clk 0:03:09]}
7. Bc4 {[%clk 0:03:07]}  Ke8 {[%clk 0:03:07]} 8. Ng5 {[%clk 0:03:07]}  Rf8 {[%clk 0:03:08]} 9. O-O {[%clk 0:03:02]}  h6 {[%clk 0:03:08]}
10. Nf3 {[%clk 0:03:01]}  a6 {[%clk 0:03:09]} 11. Re1 {[%clk 0:02:52]}  b5 {[%clk 0:03:03]} 12. Bb3 {[%clk 0:02:38]}  Bb7 {[%clk 0:03:02]}
13. Nd5 {[%clk 0:02:40]}  Nbd7 {[%clk 0:02:59]} 14. c3 {[%clk 0:02:25]}  Nxd5 {[%clk 0:02:16]} 15. Bxd5 {[%clk 0:02:11]}  Bxd5 {[%clk 0:02:17]}
16. exd5 {[%clk 0:02:12]}  f6 {[%clk 0:02:17]} 17. Nd4 {[%clk 0:01:56]}  Nb6 {[%clk 0:02:12]} 18. Nf5 {[%clk 0:01:54]}  Kf7 {[%clk 0:02:07]}
19. Nxd6+ {[%clk 0:01:44]}  cxd6 {[%clk 0:02:09]} 20. Rd1 {[%clk 0:01:45]}  Rfc8 {[%clk 0:02:06]} 21. f3 {[%clk 0:01:41]}  Rab8 {[%clk 0:01:58]}
22. Kf2 {[%clk 0:01:18]}  Rc5 {[%clk 0:01:36]} 23. Be3 {[%clk 0:01:16]}  Rxd5 {[%clk 0:01:36]} 24. Bxb6 {[%clk 0:01:06]}  Rxd1 {[%clk 0:01:37]}
25. Rxd1 {[%clk 0:01:06]}  Rxb6 {[%clk 0:01:39]} 26. Ke3 {[%clk 0:01:03]}  Ke6 {[%clk 0:01:40]} 27. b3 {[%clk 0:01:00]}  d5 {[%clk 0:01:39]}
28. f4 {[%clk 0:00:53]}  Rb7 {[%clk 0:01:33]} 29. g4 {[%clk 0:00:49]}  Rc7 {[%clk 0:01:04]} 30. f5+ {[%clk 0:00:45]}  Kd6 {[%clk 0:01:05]}
31. c4 {[%clk 0:00:24]}  bxc4 {[%clk 0:01:05]} 32. bxc4 {[%clk 0:00:22]}  Rxc4 {[%clk 0:01:06]} 33. Rb1 {[%clk 0:00:22]}  Kc7 {[%clk 0:01:02]}
34. h3 {[%clk 0:00:17]}  Rc3+ {[%clk 0:01:02]} 35. Kf2 {[%clk 0:00:12]}  Rxh3 {[%clk 0:01:02]} 36. Rc1+ {[%clk 0:00:13]}  Kd6 {[%clk 0:00:57]}
37. Rc8 {[%clk 0:00:12]}  e4 {[%clk 0:00:49]} 38. Rg8 {[%clk 0:00:12]}  Ke5 {[%clk 0:00:46]} 39. Rxg7 {[%clk 0:00:11]}  Kf4 {[%clk 0:00:46]}
40. Rd7 {[%clk 0:00:08]}  e3+ {[%clk 0:00:37]} 41. Ke2 {[%clk 0:00:05]}  Rh2+ {[%clk 0:00:37]} 42. Ke1 {[%clk 0:00:06]}  Kf3 {[%clk 0:00:36]}
43. Kd1 {[%clk 0:00:03]}  e2+ {[%clk 0:00:35]} 0-1